Cogmind - Beta 11 @@@ ROGUE MODE // 2022.04.19 @ 12:39:58 Player: Momo Result: Destroyed by as-53917 with Assembled Rifle Performance ------------- Evolutions (0) 0 Regions Visited (2) 400 Robots Destroyed (0) 0 Value Destroyed (0) 0 Prototype IDs (0) 0 Alien Tech Used (0) 0 Bonus (0) 0 TOTAL SCORE: 400 Bonus ------- None Cogmind --------- Core Integrity 0/250 Matter 261/300 Energy 82/100 System Corruption 7% Temperature Cool (0) Movement Core (50) Location -10/Mines Parts ------- > --- POWER (1) -------- (None) > --- PROPULSION (2) --- (None) > --- UTILITY (2) ------ (None) > --- WEAPON (2) ------- (None) > --- INVENTORY (5) ---- Light Treads Trap Scanner Improved Sensor Array Hardened Medium Armor Plating Improved Light Armor Plating Peak State ------------ > --- POWER ------------ Deuterium Engine > --- PROPULSION ------- Compact Wheel > --- UTILITY ---------- Medium Storage Unit Signal Interpreter > --- WEAPON ----------- EM Pulse Gun > --- INVENTORY -------- Light Treads Small Storage Unit Trap Scanner Improved Sensor Array Hardened Medium Armor Plating Ion Cannon Mining Laser [Rating: 8] Favorites ----------- Power Deuterium Engine Engine Deuterium Engine Propulsion Compact Wheel Wheel Compact Wheel Utility Signal Interpreter Storage Medium Storage Unit Processor Signal Interpreter Weapon EM Pulse Gun Energy Gun EM Pulse Gun Energy Cannon Ion Cannon Build | -11 -10 -10 ------- Run | Scr Mat Min Slots Evolved . | . . . Power . | . . . Propulsion . | . . . Utility . | . . . Weapon . | . . . Parts Attached 6 | . 2 4 Power 1 | . . 1 Engine 1 | . . 1 Core . | . . . Reactor . | . . . Propulsion 1 | . . 1 Treads . | . . . Leg . | . . . Wheel 1 | . . 1 Hover . | . . . Flight . | . . . Utility 2 | . 1 1 Device . | . . . Storage 1 | . . 1 Processor 1 | . 1 . Hackware . | . . . Protection . | . . . Artifact . | . . . Weapon 2 | . 1 1 Energy Gun 1 | . 1 . Energy Cannon 1 | . . 1 Ballistic Gun . | . . . Ballistic Cannon . | . . . Launcher . | . . . Special Weapon . | . . . Impact Weapon . | . . . Slashing Weapon . | . . . Piercing Weapon . | . . . Special Melee Weapon . | . . . Unidentified Prototypes . | . . . Parts Lost 3 | . . 3 Power 1 | . . 1 Propulsion 1 | . . 1 Utility . | . . . Weapon 1 | . . 1 Highest Loss Streak 3 | . . 3 To Critical Strikes . | . . . Average Slot Usage (%) 54 | . 22 60 Engine 8 | . . 9 Wheel 10 | . . 11 Storage 9 | . . 11 Processor 13 | . 11 13 Energy Gun 12 | . 11 12 Naked Turns 17 | . 11 6 Heaviest Build 21 | . 2 21 Greatest Support 16 | 3 3 16 Greatest Overweight (x) 1 | . . 1 Average Overweight (x) . | . . . Largest Inventory Capacity 10 | 5 5 10 Average Capacity 8 | 5 5 9 Most Carried 8 | 3 5 8 Average Carried 6 | 2 3 7 Final Capacity 5 | 5 5 5 Final Carried 5 | 3 5 5 Class Distribution -------------------- 100% | Mutant Dominant Class ---------------- Mutant | -10/Materials Mutant | -10/Mines Resources | -11 -10 -10 ----------- Run | Scr Mat Min Matter Collected 210 | 160 . 50 Remotely . | . . . Salvage Created . | . . . Parts . | . . . Haulers Intercepted . | . . . Recyclers Shooed . | . . . Parts Field Recycled . | . . . Retrieved Matter . | . . . Parts Self-Destructed . | . . . Prevented . | . . . Kills | -11 -10 -10 ------- Run | Scr Mat Min Combat Hostiles Destroyed . | . . . Classes Destroyed . | . . . Best Kill Streak . | . . . Combat Bots Only . | . . . Max Kills in Single Turn . | . . . Gunslinging . | . . . Exploded . | . . . Melee . | . . . Uniques/NPCs Destroyed . | . . . Combat | -11 -10 -10 -------- Run | Scr Mat Min Damage Taken 555 | . . 555 Core 256 | . . 256 Absorbed by Shields . | . . . Core Remaining (%) 100 | 100 . . Volleys Fired 8 | . . 8 Largest 1 | . . 1 Hottest 60 | . . 60 Shots Fired 7 | . . 7 Gun 2 | . . 2 Cannon 5 | . . 5 Launcher . | . . . Special . | . . . Kinetic . | . . . Thermal 5 | . . 5 Explosive . | . . . Electromagnetic 2 | . . 2 Robot Hit Streak 1 | . . 1 Robot Miss Streak 3 | . . 3 Penetration Max . | . . . Secondary Targets . | . . . Shots Hit Robots 2 | . . 2 Core Hits 1 | . . 1 Critical Kills . | . . . Critical Parts Destroyed . | . . . Critical Strikes . | . . . Melee Attacks . | . . . Impact . | . . . Slashing . | . . . Piercing . | . . . Sneak Attacks . | . . . Combat Hostiles . | . . . Follow-up Attacks . | . . . Damage Inflicted 50 | . . 50 Guns . | . . . Cannons 46 | . . 46 Explosions . | . . . Melee . | . . . Ramming 4 | . . 4 Kinetic . | . . . Thermal 46 | . . 46 Explosive . | . . . Electromagnetic . | . . . Impact . | . . . Slashing . | . . . Piercing . | . . . Highest Corruption 7 | . . 7 Average Corruption 4 | . . 4 Corruption Purged . | . . . Corruption Blocked . | . . . Effects 3 | . . 3 Message Errors 1 | . . 1 Matter Fused 1 | . . 1 Weapon Failures 1 | . . 1 Overload Shots . | . . . Overflow Damage 6 | . . 6 Projectiles 6 | . . 6 Explosions . | . . . Melee . | . . . Knockbacks . | . . . Impact . | . . . Kinetic . | . . . Secondary . | . . . Self-Inflicted Damage 2 | . . 2 Shots . | . . . Rammed 1 | . . 1 Targets Rammed 1 | . . 1 Kicked . | . . . Crushed . | . . . Highest Temperature 40 | . . 40 Average Temperature 16 | . . 16 Received Heat Transfer 60 | . . 60 Siege Activations . | . . . Robots Corrupted . | . . . Combat Hostiles . | . . . Parts Fried . | . . . Impact Corruptions . | . . . Robots Melted . | . . . Combat Hostiles . | . . . Parts Melted . | . . . Heat Transferred 74 | . . 74 Parts Sabotaged . | . . . Parts Stolen . | . . . Parts Stripped . | . . . Power Chain Reactions . | . . . Missiles Intercepted . | . . . Alert | -11 -10 -10 ------- Run | Scr Mat Min Peak Influence 15 | . 15 5 Initial 5 | . . 5 Average 4 | . 7 4 Maximum Alert Level . | . . . Low Security (%) 100 | 100 100 100 Level 1 . | . . . Level 2 . | . . . Level 3 . | . . . Level 4 . | . . . Level 5 . | . . . High Security . | . . . Max Security . | . . . Squads Dispatched 2 | . 1 1 Investigation 1 | . . 1 Extermination . | . . . Reinforcement 1 | . 1 . Assault . | . . . Garrison . | . . . Intercept . | . . . Searches Triggered . | . . . Construction Impeded . | . . . Haulers Reinforced . | . . . Active Scanning Responses . | . . . Cargo Convoy Interrupts . | . . . Stealth | -11 -10 -10 --------- Run | Scr Mat Min Distress Signals 1 | . 1 . Communications Jammed . | . . . Distress Signals . | . . . Times Spotted 17 | . 2 15 Peak Tracking Total 19 | . 5 19 Tactical Retreats 1 | . . 1 Traps | -11 -10 -10 ------- Run | Scr Mat Min Traps Triggered . | . . . Indirectly . | . . . Trap Hack Attempts . | . . . Triggered . | . . . Disarmed . | . . . Reprogrammed . | . . . Reused . | . . . Traps Extracted . | . . . Installed . | . . . Triggered . | . . . Machines | -11 -10 -10 ---------- Run | Scr Mat Min Machines Disabled . | . . . Max in Single Turn . | . . . Machines Sabotaged . | . . . Garrisons Compromised . | . . . Overloaded Fab Kills . | . . . Hacking | -11 -10 -10 --------- Run | Scr Mat Min Machines Accessed 2 | . 1 1 Terminals 1 | . 1 . Fabricators . | . . . Repair Stations . | . . . Recycling Units . | . . . Scanalyzers . | . . . Garrison Access . | . . . Total Hacks 4 | . 3 1 Successful 3 | . 2 1 Failed 1 | . 1 . Catastrophic . | . . . Database Lockouts . | . . . Manual 1 | . 1 . Terminals 3 | . 3 . Fabricators . | . . . Repair Stations . | . . . Recycling Units . | . . . Scanalyzers . | . . . Garrison Access . | . . . Terminal Hacks 2 | . 1 1 Open Door 1 | . . 1 Locate Traps 1 | . 1 . Fabricator Hacks . | . . . Repair Station Hacks . | . . . Recycling Unit Hacks . | . . . Scanalyzer . | . . . Garrison Access Hacks . | . . . Unauthorized Hacks 1 | . 1 . Terminals 1 | . 1 . Botnet 1 | . 1 . Fabricators . | . . . Repair Stations . | . . . Recycling Units . | . . . Scanalyzers . | . . . Garrison Access . | . . . Data Cores Recovered . | . . . Used . | . . . Hacking Detections 1 | . 1 . Full Trace Events . | . . . Feedback Events . | . . . Feedback Blocked . | . . . Robot Schematics Acquired . | . . . Robots Built . | . . . Authchips . | . . . Time . | . . . Total Robot Build Rating . | . . . Part Schematics Acquired . | . . . Parts Built . | . . . Authchips . | . . . Time . | . . . Total Part Build Rating . | . . . Parts Repaired . | . . . Time . | . . . Parts Recycled . | . . . Recycled Matter . | . . . Retrieved Matter . | . . . Retrieved Components . | . . . Parts Scanalyzed . | . . . Part Schematics Acquired . | . . . Parts Damaged . | . . . Bothacking | -11 -10 -10 ------------ Run | Scr Mat Min Used RIF Installer . | . . . Robots Hacked . | . . . Non-combat . | . . . Combat . | . . . Robot Hacks Applied . | . . . Relay Couplers Released . | . . . Fabnet Peak Effective % . | . . . Robots Rewired . | . . . Allies Hacked . | . . . Hacks Repelled . | . . . Allies | -11 -10 -10 -------- Run | Scr Mat Min Total Allies . | . . . Largest Group . | . . . Highest-Rated Group . | . . . Highest-Rated Ally . | . . . Total Orders . | . . . Ally Attacks . | . . . Total Damage . | . . . Kills . | . . . Allies Corrupted . | . . . Allies Melted . | . . . Intel | -11 -10 -10 ------- Run | Scr Mat Min Robot Analysis Total . | . . . Derelict Logs Recovered 2 | . . 2 Drone Launches . | . . . Drone Recoveries . | . . . Exploration | -11 -10 -10 ------------- Run | Scr Mat Min Turns Passed 373 | 20 54 299 Spaces Moved 425 | 35 97 293 Core 232 | 35 97 100 Treads . | . . . Legs . | . . . Wheels 193 | . . 193 Hover . | . . . Flight . | . . . Fastest Speed 50 | 50 50 50 Average Speed 79 | 50 50 92 Slowest Speed 115 | 50 50 115 Overloaded Moves . | . . . Propulsion Burnouts . | . . . Robots Hopped . | . . . Cave-ins Triggered . | . . . Exploration Rate (%) 35 | 4 27 76 Regions Visited 2 Branch Regions 1 Pre-discovered Areas . | . . . Known Exits Taken 1 | . 1 . Unknown Exits Taken 1 | 1 . . Scrap Searched 2 | . . 2 Spaces Dug . | . . . Terrain Destroyed 1 | . . 1 Melee . | . . . Projectile 1 | . . 1 AOE . | . . . Terrain Rammed . | . . . Walls Destroyed . | . . . Machines Disabled . | . . . Actions | -11 -10 -10 --------- Run | Scr Mat Min Total 451 | 37 100 314 Wait 1 | . . 1 Move 423 | 34 96 293 Hop . | . . . Pick Up 10 | 3 2 5 Fast Attach 3 | . 2 1 Attach 3 | . . 3 Detach . | . . . Swap . | . . . Drop 2 | . . 2 Fire 8 | . . 8 Melee . | . . . Ram 1 | . . 1 Kick . | . . . Crush . | . . . Escape Stasis . | . . . Rewire . | . . . Trap . | . . . Miscellaneous . | . . . Route ------- -11/Scrapyard -10/Materials -10/Mines History --------- Turn | Location | Event 3 | -11/Scrapyard | Discovered new exit (range 16) 21 | -11/Scrapyard | Entered Materials 68 | -10/Materials | Discovered new exit (range 7) 71 | -10/Materials | Identified exit to Mines 75 | -10/Materials | Entered Mines 119 | -10/Mines | Met a Derelict shopkeep closing up shop 156 | -10/Mines | Learned 2 Materials zone layouts 294 | -10/Mines | Assembled infested the area 307 | -10/Mines | Build established: Mutant 359 | -10/Mines | Core integrity fell below 50% 368 | -10/Mines | Released all parts (3) 369 | -10/Mines | Core integrity fell below 20% 374 | -10/Mines | Destroyed by as-53917 with Assembled Rifle Last Messages --------------- 00311_ as-82127 sneak attacks. 00311_ K-01 Serf system corrupted by crushing effect. 00312_ K-01 Serf system terminally corrupted. 00324_ K-01 Serf collects debris. 00327_ K-01 Serf cleans the Plasma Injector. 00328_ 2Q#GJVWMI6UYH>#E0ZPV4 00331_ K-01 Serf collects debris. 00345_ Deuterium Engine destroyed. 00345_ System corrupted by crushing effect (+5). 00345_ Knocked back. 00349_ System corrupted: Matter fused (-9). 00349_ EM Pulse Gun destroyed. 00351_ Destroyed Asb. F-torch. 00365_ System corrupted: Ion Cannon failed to cycle. 00366_ Com. Wheel destroyed. 00367_ Dropped Sml. Storage Unit. 00367_ Dropped Mining Laser. 00368_ Released Med. Storage Unit. 00368_ Released Signal Interpreter. 00368_ Released Ion Cannon. Map ----- +----------------------------------------------------+ | ??????????????????????????????????????????????? | | ????????######????????????????????????????????? | | ????????# ##???????????????????????????????? | | ????????# ##??????????????????????????????? | | ???????## #??????????????????????????????? | | ???##### #??????????????????????????????? | | ??## #??????????????????????????????? | | ?## #??????????????????????????????? | | ## #########??????????????????????? | | # """ #??????????????????????? | | """ ##### #??????????????????????? | | """ # #??#"] #??????????????????????? | | # ## ##??##!!#??????????????????????? | | # ##### ###???# |a##?????????????????????? | | ##???# #?????# a #?????????????????????? | | #????# #?????# #?????????????????????? | | # #????# #?????# ##????????????????????? | | ## ##????# ?????# ##???????????????????? | | ?####?????# ?????## ##??##############??? | | ??????????#####?????## ##?# #??? | | ?????????????????????# #?# #??? | | ??????????????# ##### a #?# """ """ #??? | | ??????????????# =%! ##?# """ """ #??? | | ???????????????#######a #??# """ """ #??? | | ?????????????????????# ##??# #??? | | ????????????????????## @##??####### ######??? | | ???????????????????## #######??# #???????? | | ######?????????????# k ##?# #???????? | | #?????????????# #?# #???????? | | #?????????????## ##?# ######??? | | #??????????????#### ##??# #??? | | #?????????????????## ##??## ### #??? | | #??????????????????## ##### #?# #??? | | ####???????????????????# """ ## #?# #??? | | #?????????????????????##t """ ### #??? | | #????????????????????## """ ## #??? | | #????????????????????# """ ## #??? | | #????????????????????# ## #??? | | ###????????????????????## ### #??? | | #???????????????????????## #### #??? | | ??????????????###????????## ## #??? | | ?????????????# #?????????## ## ###??? | | ????????##### #??????????## # ## #????? | | ???????## #???????????## ## #????? | | ??????## #?????????????# ## ## #????? | | ###???# #???????######## ### ### #????? | | #??## #?????????# #?# #?# #????? | | #### #??????????# ####### #?# #?# ###??? | | #??????????# #?????# #?# ### ##?? | | ##?????????# #?????# #?# ## #?? | +----------------------------------------------------+ Best States ------------- Heat Dissipation 25 Energy Generation 14 Energy Capacity 275 Matter Stores 280 Matter Capacity 300 Sight Range 16 Terrain Scan Density 10 Evasion (%) 50 Item Schematics ----------------- None Robot Schematics ------------------ None Fabricated ------------ Nothing Alien Tech Used ----------------- None Achievements -------------- None Challenges ------------ None Game ------ Seed ScatterActuatorSteel Manual? 0 Play Time 00:05:51 Cumulative 256.5 hours Start 2022.04.19 @ 12:36:16 End 2022.04.19 @ 12:39:58 Sessions 1 Manual Loads 0 Difficulty Rogue Special Mode None Game No. 131 Rogue 127 Adventurer 0 Explorer 4 Win Type - Total 15 Types 4/0/2/3/1/2/3/0/0 Lore% 75 Gallery% 80 Achievement% 73 Wizard Run 0 Options --------- ASCII 0 Keyboard 0 Movement Mouse Keybinds 0 Fullscreen 1 Font 18/SmallcapsGlow Map View 76x50 Tactical HUD 1 Map Filters NONE Filters NONE Steam 1 RUN: 7da81d24-329f-4628-85d9-122a757b4c24